[Event "41st BAN National Women Chess-ch 2022"]
[Site "Dhaka"]
[Date "2022.11.17"]
[Round "1.5"]
[White "Nusrat Jahan, Alo"]
[Black "Jannatul, Ferdous"]
[Result "1/2-1/2"]
[ECO "B19"]
[WhiteElo "1710"]
[BlackElo "1861"]
[Annotator "NA RC COMBH"]
[PlyCount "87"]
[EventDate "2022.11.17"]
[EventCountry "BAN"]
[SourceTitle "playchess.com"]
[Source "ChessBase"]
[SourceQuality "1"]
[TimeControl "40/5400+30:1800+30"]

{[%evp 26,87,10,32767,32767,10,20,14,35,13,35,22,33,22,25,21,21,29,26,0,0,0,0,0,0,0,50,51,92,89,182,80,81,83,79,61,79,86,81,51,74,10,28,31,30,33,26,23,94,94,101,117,114,50,48,15,106,0,32767,32767,32767,32767,40,0]} 1. e4 {[%emt 0:00:04]} c6 {[%emt 0:00:50]} 2. d4 {[%emt 0:00:09]} d5 {[%emt 0:00:10]} 3. Nd2 {[%emt 0:00:08]} dxe4 {[%emt 0:00:03]} 4. Nxe4 {[%emt 0:00:13]} Bf5 {[%emt 0:00:10]} 5. Ng3 {[%emt 0:00:07]} Bg6 {[%emt 0:00:02]} 6. h4 {[%emt 0:00:18]} h6 {[%emt 0:00:06]} 7. Nf3 {[%emt 0:00:11]} Nd7 {[%emt 0:00:07]} 8. h5 {[%emt 0:00:28]} Bh7 {[%emt 0:00:03]} 9. Bd3 {[%emt 0:00:34]} Bxd3 {[%emt 0:00:18]} 10. Qxd3 {[%emt 0:00:09]} e6 {[%emt 0:00:29]} 11. Bd2 {[%emt 0:02:54]} Ngf6 {[%emt 0:00:34]} 12. Ne4 {[%emt 0:02:36]} Be7 {[%emt 0:01:11]} 13. O-O-O {[%emt 0:02:41]} Nxe4 {[%emt 0:01:13]} 14. Qxe4 {[%emt 0:00:14]} Nf6 {[%emt 0:00:02]} 15. Qe2 {[%emt 0:01:44]} Qd5 {[%emt 0:01:06]} 16. Kb1 {[%emt 0:08:40]} Qe4 {[%emt 0:01:32]} 17. Be3 {[%emt 0:03:15]} Ng4 {[%emt 0:09:22]} 18. Nd2 {[%emt 0:05:59]} Qf5 {[%emt 0:00:50]} (18... Qxg2 $2 19. Rhg1 Nxe3 20. Rxg2 Nxg2 21. Qg4 $18) 19. f3 {[%emt 0:00:31]} Nxe3 {[%emt 0:04:47]} 20. Qxe3 {[%emt 0:00:15]} O-O-O {[%emt 0:30:01]} 21. Ne4 {[%emt 0:05:22]} Qd5 {[%emt 0:10:35]} 22. Nc3 {[%emt 0:07:17]} Qa5 {[%emt 0:01:01]} 23. Rd3 {[%emt 0:06:09]} Rd7 {[%emt 0:03:08]} 24. g4 {[%emt 0:06:04]} Rhd8 {[%emt 0:02:22]} 25. Rhd1 {[%emt 0:01:26]} c5 {[%emt 0:07:59]} (25... Bf6 $11) 26. d5 {[%emt 0:08:17]} exd5 {[%emt 0:22:35]} (26... Qa6 $14) 27. Nxd5 {[%emt 0:01:25]} Bf8 {[%emt 0:00:39]} (27... Bg5 $16 {was called for.} 28. Qe5 Qa6) 28. c4 {[%emt 0:00:48]} (28. Qf4 $18 {has better winning chances.}) 28... Qa6 {[%emt 0:01:16]} 29. Qc1 {[%emt 0:04:59]} Qc6 {[%emt 0:01:45]} 30. Ra3 {[%emt 0:02:01]} b6 {[%emt 0:00:03]} 31. Rad3 {[%emt 0:02:16]} g6 {[%emt 0:00:31]} 32. Qe3 {[%emt 0:03:19]} (32. Qd2 $16) 32... Kb7 {[%emt 0:01:01]} 33. f4 {[%emt 0:01:21]} (33. Qd2 $14) 33... gxh5 {[%emt 0:00:25]} 34. gxh5 {[%emt 0:00:01]} Bg7 {[%emt 0:00:32]} 35. f5 {[%emt 0:00:21]} Bd4 {[%emt 0:00:28]} 36. Qf4 {[%emt 0:00:45]} Rxd5 {[%emt 0:00:40]} (36... Re8 $11) 37. cxd5 {[%emt 0:00:54]} Rxd5 {[%emt 0:00:02] [#]} 38. Re1 $1 {[%emt 0:03:28]} ({Much worse is} 38. Rxd4 $6 cxd4 39. Rxd4 Qd7 40. Rxd5 Qxd5 $11) 38... Qf6 {[%emt 0:00:07] [#]} 39. Rf1 {[%emt 0:02:26]} ({Much weaker is} 39. Re8 $6 Qxf5 40. Re7+ Ka6 41. Qxf5 Rxf5 $11) (39. Rf3 $1 $16) 39... Re5 {[%emt 0:01:06]} 40. Qf3+ {[%emt 0:03:58]} Kb8 {[%emt 0:00:15] [#]} (40... Qc6 $11 {keeps the balance.}) 41. Qf4 {[%emt 0:31:46]} (41. b4 $1 $16) 41... Kb7 {[%emt 0:30:11]} 42. Qf3+ {[%emt 0:00:39]} Kb8 {[%emt 0:00:04]} 43. Qf4 {[%emt 0:00:25]} Kb7 $1 {[%emt 0:00:00]} 44. Rd2 $11 1/2-1/2

[Event "41st BAN National Women Chess-ch 2022"]
[Site "Dhaka"]
[Date "2022.11.17"]
[Round "1.6"]
[White "Tasnia Tarannum, Orpa"]
[Black "Noshin, Anjum"]
[Result "0-1"]
[ECO "D02"]
[WhiteElo "1662"]
[BlackElo "1907"]
[Annotator "TA"]
[PlyCount "68"]
[EventDate "2022.11.17"]
[EventCountry "BAN"]
[SourceTitle "playchess.com"]
[Source "ChessBase"]
[SourceQuality "1"]
[TimeControl "40/5400+30:1800+30"]

{[%evp 9,68,4,0,0,0,-79,-85,-260,-212,-197,-100,-108,-101,-162,-141,-154,-126,-161,-98,-122,-89,-105,-70,-120,-105,-83,-83,-161,-154,-182,-183,-191,-181,-251,-252,-299,-302,-290,-297,-322,-215,-232,-199,-291,-300,-336,-298,-460,-476,-612,-546,-641,-460,-643,-641,-855,-852,-843,-812,-2885,-2753]} 1. d4 {[%emt 0:00:06]} d5 {[%emt 0:00:10]} 2. Bf4 {[%emt 0:00:15]} c5 {[%emt 0:00:06]} 3. e3 {[%emt 0:00:22]} Nc6 {[%emt 0:00:07]} 4. Nf3 {[%emt 0:00:13]} Nf6 {[%emt 0:00:25]} 5. Nbd2 {[%emt 0:00:58]} Qb6 {[%emt 0:00:22][%csl LRb2,LRd4][%cal Rc5d4]} 6. dxc5 {[%emt 0:04:01] D02: 1 d4 d5 2 Nf3 sidelines, including 2...Nf6 3 g3 and 2...Nf6 3 Bf4.} Qxb2 {[%emt 0:00:08]} 7. Nb3 {[%emt 0:21:52]} (7. Rb1 $11 {remains equal.} Qc3 8. Bb5) 7... e5 $17 {[%emt 0:20:00] Black is more active.} 8. Bg5 {[%emt 0:06:42] [#]} (8. Bg3 $17 {was forced.}) 8... Qc3+ {[%emt 0:01:21]} 9. Qd2 {[%emt 0:02:25]} Qxd2+ {[%emt 0:01:25]} (9... Ne4 $19 10. Qxc3 Nxc3) 10. Nfxd2 {[%emt 0:01:42] [#]} Nd7 $146 {[%emt 0:01:38]} ({Predecessor:} 10... Be7 11. Be2 Bf5 12. Rc1 O-O 13. O-O h6 14. Bh4 Ne4 15. Bxe7 Nxe7 16. Nxe4 Bxe4 {0-1 (67) Sato,L (1830)-Yoshioka,A (1638) Sao Paulo 2014}) 11. Bb5 {[%emt 0:04:57]} (11. c4 $17) 11... Nxc5 {[%emt 0:07:04]} 12. O-O {[%emt 0:01:50]} Bd7 {[%emt 0:10:05]} 13. Rfd1 {[%emt 0:06:59]} Ne6 {[%emt 0:02:40]} (13... f6 $19 14. Bh4 Nxb3 15. axb3 a6) 14. Bh4 {[%emt 0:00:40]} Nc7 {[%emt 0:01:46]} 15. Be2 {[%emt 0:01:13]} Be7 {[%emt 0:03:52]} 16. Bg3 {[%emt 0:01:29]} (16. Bxe7 $15 Nxe7 17. c4) 16... Rc8 {[%emt 0:03:37]} 17. c4 {[%emt 0:06:50]} Be6 {[%emt 0:02:15]} 18. c5 {[%emt 0:06:53]} (18. e4 $17 dxc4 19. Nxc4) 18... O-O $19 {[%emt 0:00:56]} 19. Nf3 {[%emt 0:06:10]} f6 {[%emt 0:01:58]} 20. Rac1 {[%emt 0:00:54]} Rfd8 {[%emt 0:04:52]} 21. Ne1 {[%emt 0:01:00]} (21. Nfd2 {was worth a try.}) 21... a5 {[%emt 0:08:01][%cal Ba7a5,Ba5a4][%mdl 32]} 22. Nd3 {[%emt 0:03:21]} a4 {[%emt 0:02:10]} 23. Nd2 {[%emt 0:01:13]} Na6 {[%emt 0:00:32][%cal Bc7a6,Ba6c5,Bc5e4,Be4d2,Bd2f3][%mdl 32]} 24. Rb1 {[%emt 0:01:50]} Rd7 {[%emt 0:08:14]} 25. Rdc1 {[%emt 0:00:33]} Na5 {[%emt 0:03:10]} 26. Rb5 {[%emt 0:00:34]} (26. f4 $142 e4 27. Ne1) 26... Nc4 {[%emt 0:00:22]} 27. Nxc4 {[%emt 0:01:24]} dxc4 {[%emt 0:00:03]} 28. Nb2 {[%emt 0:00:20]} (28. Ne1 $142) 28... Nxc5 {[%emt 0:01:16] Black is clearly winning.} 29. Nd1 {[%emt 0:15:40]} Ne4 {[%emt 0:04:20] [#] ...c3 is the strong threat.} 30. Rb6 {[%emt 0:01:59]} Kf7 {[%emt 0:04:58] Threatens to win with ...c3.} 31. Bf3 {[%emt 0:00:31]} Rcd8 {[%emt 0:04:17]} 32. Rbb1 {[%emt 0:01:01]} Nd2 {[%emt 0:00:34]} 33. Ra1 {[%emt 0:00:29]} Ba3 {[%emt 0:00:21]} 34. Rc3 {[%emt 0:00:22]} Nxf3+ {[%emt 0:00:07] Weighted Error Value: White=0.78/Black=0.30} 0-1